Cogmind - Beta 16.1 @@@ ROGUE MODE // 2026.02.13 @ 21:11:24 Player: %41THX3142 Result: Destroyed by G-34 Mercenary with Small Laser Performance ------------- Evolutions (0) 0 Regions Visited (1) 200 Robots Destroyed (21) 105 Value Destroyed (462) 462 Prototype IDs (0) 0 Alien Tech Used (0) 0 Bonus (0) 0 TOTAL SCORE: 767 Bonus ------- None Cogmind --------- Core Integrity 0/250 Matter 292/300 Energy 218/250 System Corruption 2% Temperature Warm (102) Movement Flying (117) Ox1 Location -10/Materials Parts ------- > --- POWER (1) -------- Ion Engine > --- PROPULSION (2) --- Flight Unit Flight Unit > --- UTILITY (2) ------ Small Storage Unit Propulsion Shielding > --- WEAPON (2) ------- EM Pulse Gun Light Assault Rifle > --- INVENTORY (8) ---- Ion Engine Flight Unit EM Pulse Gun Small Laser Small Laser Mining Laser Peak State ------------ > --- POWER ------------ Light Ion Engine > --- PROPULSION ------- Aluminum Leg Aluminum Leg > --- UTILITY ---------- Small Storage Unit Seismic Detector > --- WEAPON ----------- Light Assault Rifle Light Assault Rifle > --- INVENTORY -------- Ion Engine Light Assault Rifle Mining Laser [Rating: 7] Favorites ----------- Power Light Ion Engine Engine Light Ion Engine Propulsion Aluminum Leg Leg Aluminum Leg Flight Unit Flight Unit Utility Small Storage Unit Device Seismic Detector Storage Small Storage Unit Protection Propulsion Shielding Weapon Light Assault Rifle Energy Gun EM Pulse Gun Ballistic Gun Light Assault Rifle Build | -11 -10 ------- Run | Yrd Mat Slots Evolved . | . . Power . | . . Propulsion . | . . Utility . | . . Weapon . | . . Parts Attached 16 | 7 9 Power 3 | 1 2 Engine 3 | 1 2 Core . | . . Reactor . | . . Propulsion 7 | 2 5 Treads . | . . Leg 3 | 2 1 Wheel . | . . Hover . | . . Flight 4 | . 4 Utility 3 | 2 1 Device 1 | 1 . Storage 1 | 1 . Processor . | . . Hackware . | . . Protection 1 | . 1 Artifact . | . . Weapon 3 | 2 1 Energy Gun 1 | . 1 Energy Cannon . | . . Ballistic Gun 2 | 2 . Ballistic Cannon . | . . Launcher . | . . Special Weapon . | . . Impact Weapon . | . . Slashing Weapon . | . . Piercing Weapon . | . . Special Melee Weapon . | . . Unidentified Prototypes . | . . Parts Lost 6 | . 6 Power 2 | . 2 Propulsion 2 | . 2 Utility 1 | . 1 Weapon 1 | . 1 Highest Loss Streak 5 | . 5 To Critical Strikes . | . . Average Backups 5 | 1 6 Power . | . . Propulsion 1 | . 1 Utility . | . . Weapon 2 | 1 2 Tool/Special . | . . Unused Backups 6 | . 6 Power . | . . Propulsion 1 | . 1 Utility . | . . Weapon 5 | . 5 Tool/Special . | . . Average Slot Usage (%) 90 | . 90 Engine 8 | . 8 Leg 15 | . 15 Flight 10 | . 10 Device 12 | . 12 Storage 14 | . 14 Ballistic Gun 26 | . 26 Peak Build Rating 7 | 7 7 Average Rating 6 | 5 6 On Entrance 3 | . 7 Avg Prop Armor Cover (%) 10 | . 10 Naked Turns . | . . Heaviest Build 14 | 11 14 Greatest Support 20 | 20 20 Greatest Overweight (x) 2 | . 2 Average Overweight (x) . | . . Largest Inventory Capacity 8 | 8 8 Average Capacity 7 | 7 8 Most Carried 8 | 3 8 Average Carried 5 | 1 6 Final Capacity 8 | 8 8 Final Carried 6 | 3 6 Class Distribution -------------------- 72% | Mutant 27% | Scavenger-Mutant Dominant Class ---------------- Mutant | -10/Materials Resources | -11 -10 ----------- Run | Yrd Mat Matter Collected 542 | 263 279 Remotely . | . . Salvage Created 610 | 120 490 Parts 46 | 9 37 Haulers Intercepted . | . . Recyclers Shooed 3 | 1 2 Parts Field Recycled . | . . Retrieved Matter . | . . Parts Self-Destructed . | . . Prevented . | . . Parts Restored . | . . Kills | -11 -10 ------- Run | Yrd Mat Combat Hostiles Destroyed 14 | . 14 Guns 13 | . 13 AOE 1 | . 1 Classes Destroyed 5 | 2 3 Tunneler 4 | 2 2 Recycler 2 | 1 1 Watcher 1 | . 1 Swarmer 5 | . 5 Grunt 9 | . 9 Best Kill Streak 8 | 2 8 Combat Bots Only 7 | . 7 Max Kills in Single Turn 1 | 1 1 Gunslinging . | . . Exploded 1 | . 1 Melee . | . . Uniques/NPCs Destroyed . | . . Combat | -11 -10 -------- Run | Yrd Mat Hostile Shots Fired 88 | . 88 Missed 16 | . 16 Hits 72 | . 72 Projectile 72 | . 72 Damage Taken 781 | . 781 Core 250 | . 250 Absorbed by Shields . | . . Redirected to Shielding 6 | . 6 Regen/Repaired (Parts) 18 | . 18 Core Remaining (%) 100 | 100 . Volleys Fired 100 | 24 76 Largest 2 | 2 2 Hottest 60 | 40 60 Shots Fired 179 | 48 131 Gun 179 | 48 131 Cannon . | . . Launcher . | . . Special . | . . Kinetic 171 | 48 123 Thermal . | . . Explosive . | . . Electromagnetic 8 | . 8 Robot Hit Streak 11 | 11 9 Robot Miss Streak 6 | 4 6 Penetration Max . | . . Secondary Targets 3 | . 3 Max Gunslinging Chain 1 | . 1 Shots Hit Robots 100 | 30 70 Core Hits 43 | 9 34 Critical Kills 2 | . 2 Critical Parts Destroyed . | . . Critical Strikes 2 | . 2 Destroy 2 | . 2 Melee Attacks . | . . Impact . | . . Slashing . | . . Piercing . | . . Sneak Attacks . | . . Combat Hostiles . | . . Follow-up Attacks . | . . Damage Inflicted 1131 | 266 865 Guns 872 | 266 606 Cannons . | . . Explosions 251 | . 251 Melee . | . . Ramming 8 | . 8 Kinetic 808 | 266 542 Thermal . | . . Explosive 223 | . 223 Electromagnetic 92 | . 92 Impact . | . . Slashing . | . . Piercing . | . . Highest Corruption 2 | . 2 Average Corruption 2 | . 2 Corruption Purged . | . . Corruption Blocked . | . . Effects 3 | . 3 Matter Fused 2 | . 2 Energy Discharges 1 | . 1 Overload Shots . | . . Overflow Damage 1 | . 1 Projectiles . | . . Explosions 1 | . 1 Melee . | . . Knockbacks . | . . Impact . | . . Kinetic . | . . Secondary . | . . Self-Inflicted Damage 50 | . 50 Shots 1 | . 1 Rammed 1 | . 1 Targets Rammed 1 | . 1 Kicked . | . . Crushed . | . . Highest Temperature 96 | . 96 Average Temperature 17 | . 17 Received Heat Transfer 288 | . 288 Siege Activations . | . . Martial Activations . | . . Shielding Activations . | . . Robots Disrupted . | . . Combat Hostiles . | . . Robots Corrupted . | . . Combat Hostiles . | . . Parts Fried . | . . Impact Corruptions . | . . Robots Melted . | . . Combat Hostiles . | . . Parts Melted . | . . Heat Transferred . | . . Parts Sabotaged . | . . Parts Stolen . | . . Parts Stripped . | . . Power Chain Reactions . | . . Alert | -11 -10 ------- Run | Yrd Mat Maximum Alert Level . | . . Low Security (%) 100 | 100 100 Level 1 . | . . Level 2 . | . . Level 3 . | . . Level 4 . | . . Level 5 . | . . High Security . | . . Max Security . | . . Peak Influence 148 | 5 148 Initial . | . . Average 62 | . 74 Influence Increases 485 | 15 470 Destroy 0b10 Robot/C 280 | . 280 Destroy 0b10 Robot/NC 35 | 15 20 Destroy Leader 42 | . 42 Successful Hack 25 | . 25 Disable Machine 75 | . 75 Destroy Structure 28 | . 28 Influence Decreases 361 | 15 346 Time Decay 301 | 15 286 Lost Part 60 | . 60 Squads Dispatched 3 | . 3 Investigation 1 | . 1 Extermination . | . . Reinforcement 2 | . 2 Assault . | . . Garrison . | . . Intercept . | . . Searches Triggered . | . . Construction Impeded . | . . Haulers Reinforced . | . . Active Scanning Responses . | . . Cargo Convoy Interrupts . | . . Stealth | -11 -10 --------- Run | Yrd Mat Distress Signals 2 | . 2 Communications Jammed . | . . Distress Signals . | . . Times Spotted 23 | . 23 Peak Tracking Total 7 | . 7 Tactical Retreats . | . . Traps | -11 -10 ------- Run | Yrd Mat Traps Triggered 1 | . 1 Indirectly . | . . Trap Hack Attempts . | . . Triggered . | . . Disarmed . | . . Reprogrammed . | . . Reused . | . . Traps Extracted . | . . Installed . | . . Triggered . | . . Machines | -11 -10 ---------- Run | Yrd Mat Machines Disabled 5 | . 5 Max in Single Turn 2 | . 2 Machines Repaired . | . . Machines Dismantled . | . . Machines Sabotaged . | . . Overloaded Fab Kills . | . . Hacking | -11 -10 --------- Run | Yrd Mat Machines Accessed 6 | . 6 Terminals 3 | . 3 Fabricators . | . . Repair Stations 1 | . 1 Recycling Units 2 | . 2 Scanalyzers . | . . Garrison Access . | . . Total Hacks 19 | . 19 Successful 14 | . 14 Failed 5 | . 5 Catastrophic . | . . Database Lockouts . | . . Manual 8 | . 8 Terminals 13 | . 13 Fabricators . | . . Repair Stations 4 | . 4 Recycling Units 2 | . 2 Scanalyzers . | . . Garrison Access . | . . Terminal Hacks 4 | . 4 Record 2 | . 2 Robot Analysis 1 | . 1 Alert Level 1 | . 1 Fabricator Hacks . | . . Repair Station Hacks 4 | . 4 Scan Component 2 | . 2 Repair 2 | . 2 Recycling Unit Hacks 1 | . 1 Report Inventory 1 | . 1 Scanalyzer . | . . Garrison Access Hacks . | . . Unauthorized Hacks 5 | . 5 Terminals 5 | . 5 Assimilate 3 | . 3 Botnet 2 | . 2 Fabricators . | . . Repair Stations . | . . Recycling Units . | . . Scanalyzers . | . . Garrison Access . | . . Data Cores Recovered . | . . Used . | . . Hacking Detections 5 | . 5 Full Trace Events 2 | . 2 Feedback Events . | . . Feedback Blocked . | . . Robot Schematics Acquired . | . . Robots Built . | . . Authchips . | . . Time . | . . Total Robot Build Rating . | . . Part Schematics Acquired . | . . Parts Built . | . . Authchips . | . . Time . | . . Total Part Build Rating . | . . Part Studies Acquired . | . . Parts Repaired 2 | . 2 Time 52 | . 52 Parts Recycled . | . . Recycled Matter . | . . Retrieved Matter . | . . Retrieved Components . | . . Parts Scanalyzed . | . . Part Schematics Acquired . | . . Parts Damaged . | . . Bothacking | -11 -10 ------------ Run | Yrd Mat Used RIF Installer . | . . Robots Hacked . | . . Non-combat . | . . Combat . | . . Robot Hacks Applied . | . . Relay Couplers Released . | . . Fabnet Peak Effective % . | . . Robots Rewired . | . . Allies Hacked . | . . Hacks Repelled . | . . Allies | -11 -10 -------- Run | Yrd Mat Total Allies . | . . Largest Group . | . . Highest-Rated Group . | . . Highest-Rated Ally . | . . Total Orders . | . . Ally Attacks . | . . Total Damage . | . . Kills . | . . Allies Corrupted . | . . Allies Melted . | . . Intel | -11 -10 ------- Run | Yrd Mat Active Infowar (turns) 736 | 20 716 Seismic 736 | 20 716 Robot Analysis Total 1 | . 1 Derelict Logs Recovered . | . . Drone Launches . | . . Drone Recoveries . | . . Exploration | -11 -10 ------------- Run | Yrd Mat Turns Passed 937 | 152 785 Spaces Moved 495 | 66 429 Core 3 | 3 . Treads . | . . Legs 331 | 63 268 Wheels . | . . Hover . | . . Flight 161 | . 161 Fastest Speed 50 | 50 117 Average Speed 119 | 116 119 Slowest Speed 210 | 120 210 Overloaded Moves . | . . Propulsion Burnouts . | . . Robots Hopped . | . . Potential Cave-ins . | . . Cave-ins Triggered . | . . Exploration Rate (%) 29 | 4 55 Regions Visited 1 Branch Regions . Pre-discovered Areas . | . . Known Exits Taken . | . . Unknown Exits Taken 1 | 1 . Scrap Searched . | . . Spaces Dug . | . . Terrain Destroyed 31 | . 31 Melee . | . . Projectile . | . . AOE 31 | . 31 Terrain Rammed . | . . Walls Destroyed . | . . Machines Disabled . | . . Actions | -11 -10 --------- Run | Yrd Mat Total 696 | 99 597 Wait 59 | . 59 Move 494 | 65 429 Hop . | . . Pick Up 15 | 3 12 Fast Attach 9 | 7 2 Attach 5 | . 5 Detach . | . . Swap 6 | . 6 Drop 7 | . 7 Fire 100 | 24 76 Melee . | . . Ram 1 | . 1 Kick . | . . Crush . | . . Escape Stasis . | . . Rewire . | . . Trap . | . . Miscellaneous . | . . Route ------- -11/Scrapyard -10/Materials (discovered 3 exits: [*Mat x2] / [*Min]) History --------- Turn | Location | Event 15 | -11/Scrapyard | Discovered new exit (range 16) 153 | -11/Scrapyard | Entered Materials 170 | -10/Materials | Discovered new exit (range 16) 306 | -10/Materials | Build established: Mutant 396 | -10/Materials | Discovered new exit (range 16) 720 | -10/Materials | Repaired Flight Unit 748 | -10/Materials | Repaired Flight Unit 838 | -10/Materials | Core integrity fell below 50% 887 | -10/Materials | Core integrity fell below 20% 904 | -10/Materials | Lost 5 parts (1p2n1u1w) 917 | -10/Materials | Discovered new exit (range 16) 938 | -10/Materials | Destroyed by G-34 Mercenary with Small Laser Last Messages --------------- 00864_ K-01 Serf collects debris. 00869_ Seismic Detector destroyed. 00873_ Flight Unit destroyed. 00878_ G-34 Mercenary suffers critical hit (Destroy). 00878_ G-34 Mercenary destroyed. 00878_ K-01 Serf collects debris. 00891_ G-34 Mercenary destroyed. 00891_ K-01 Serf collects debris. 00901_ Acquired 107 matter. 00904_ K-01 Serf collects debris. 00907_ Acquired Sml. Laser. 00908_ W-16 Scout sends out distress signal. 00908_ G-34 Mercenary destroyed. 00911_ W-16 Scout destroyed. 00915_ Acquired Sml. Laser. 00917_ EXIT=FOUND 00920_ Acquired Ion Engine. 00928_ G-34 Mercenary destroyed. 00928_ Switching to secondary target: G-34 Mercenary. 00929_ K-01 Serf collects debris. Map ----- +----------------------------------------------------+ | ???????????????????????????????????????????????? | | ???????????????????????????????????????????????? | | ???????????????????????????????????????????????? | | ???????????????????????????????????????????????? | | ???????????????????????????????????????????????? | | ???????????????????????????????????????????????? | | ???????????????????????????????????????????????? | | ???????????????????????????????????????????????? | | ???????????????????????????????????????????????? | | ???????????????????????????????????????????????? | | ???????????????????????????????????????????????? | | ???????????????????????????????????????????????? | | ???????????????????????????????????????????? ??? | | ??????????????????????????????????????????? #?? | | ??????????????????????????????????????????? #?? | | ?????????????????????????????????????????? #?? | | ?????????????????????????????????????????? #?? | | ?????????????????????????????????????????? #?? | | ?????????????????????????????????????????? #?? | | ?????????????????????????????????????????? #?? | | ?????????????????????????????????????????? #?? | | ?????????#??????????????????????????????## ### | | ???????### ###+######################## | | ?????? | | | ?????? < kg % | | ?????? !@ %* T #### | | ?????????????##########/##### !%* #??? | | ?????????????????????#=%[* # = =% #??? | | ?????????????????????#=""" # #??? | | ?????????????????????# """ # #??? | | ?????????#######?????# """ # #??? | | ?????????# #?????# # ] ##?? | | ?????????# """ #?????# # # ## | | ?????????# """ #?????######## ## # | | ?????????# """ #????????????# | | ?????????# """ #????????????# | | ########## """ #????????????# | | # ## ######????######+# " | | # """ #####+## #????# # T | | # """ # = #????# """# " | | # """ # == ! #????# R"# | | # # ##### #????# """# | | # # #???## ##????# # ############ | | # # #????# #?????# [ # #???### | | # """ + #????# ####### [[[ # #?###?### # | | # Y" # #????# ######### ## !##??###" | | # """ # #????# #??????# !#????#" | | # # ######+#### #??????# !#????#" | | #########=[# # #??????# " !#????# | | ?????# !%# """ """ # ######## !#????#" | +----------------------------------------------------+ Best States ------------- Heat Dissipation 25 Energy Generation 10 Energy Capacity 250 Matter Stores 300 Matter Capacity 300 Sight Range 16 Terrain Scan Density 10 Propulsion Shielding 33 Evasion (%) 55 Item Schematics ----------------- None Robot Schematics ------------------ None Fabricated ------------ Nothing Repaired ---------- Flight Unit | 55% | -10/Materials Flight Unit | 55% | -10/Materials Studied --------- None Alien Tech Used ----------------- None Achievements -------------- None Challenges ------------ None Game ------ Seed SalvagingWeaponsRail Manual? 0 Play Time 00:10:41 Cumulative 64.2 hours Start 2026.02.13 @ 20:59:40 End 2026.02.13 @ 21:11:24 Sessions 1 Manual Loads 0 Difficulty Rogue Special Mode None Game No. 56 Rogue 56 Adventurer 0 Explorer 0 Win Type - Total 0 Types 0/0/0/0/0/0/0/0/0/0 Lore% 25 Gallery% 29 Achievement% 24 Wizard Run 0 Options --------- Layout 0 ASCII 0 Keyboard 1 Movement Vi Keybinds 0 Fullscreen 1 Font 36/Smallcaps Map View 76x50 Zoom Use 0% Tactical HUD 1 Map Filters NONE Filters NONE Steam 1 RUN: 76fc511d-d9ad-4fa0-b682-faf14621e999